bitfinex/quotes_ETHUSD_20250813
["timestamp","ask_amount","ask_price","bid_price","bid_amount"]
[1755101382974,0.1072,4679.3,4678.6,0.09]
[1755101383203,0.1072,4679.3,4678.7,3.322]
[1755101383412,0.1072,4679.3,4678.9,0.09]
[1755101383573,0.1072,4679.3,4679.0,5.124]
[1755101384412,0.1072,4679.3,4679.1,0.4293]
[1755101384610,0.1072,4679.7,4679.2,3.322]
[1755101384910,0.1072,4679.7,4679.3,1.583]
[1755101385284,0.1072,4679.7,4679.2,3.322]
[1755101385607,0.1072,4679.7,4679.3,1.673]
[1755101385812,0.1072,4679.7,4679.3,2.69562]
[1755101386038,0.640503,4680.2,4679.4,1.583]
[1755101386260,0.1072,4680.1,4679.4,0.1072]
[1755101386456,0.1072,4680.1,4679.4,0.1972]
[1755101386616,0.1072,4680.1,4679.4,0.6265]
[1755101386811,0.1072,4680.1,4679.4,0.1972]
[1755101387026,0.1072,4680.1,4679.5,0.4293]
[1755101387453,0.1072,4680.1,4679.5,0.09]
[1755101387823,0.002,4680.3,4679.6,1.583]
[1755101388020,0.002,4680.3,4679.7,3.32]
[1755101388260,0.002,4680.3,4679.5,0.09]
[1755101388458,0.002,4680.3,4679.8,3.33]
[1755101388943,0.4707,4680.2,4679.8,3.33]
[1755101389263,1.6975,4680.1,4679.8,3.33]
[1755101389560,0.4707,4680.1,4679.8,3.34]
[1755101389763,0.002,4680.3,4679.8,3.34]
[1755101390056,1.6975,4680.0,4679.8,3.34]
[1755101390224,1.6975,4679.9,4679.8,3.34]
[1755101391452,1.6975,4679.9,4679.8,0.01]
[1755101391749,1.6975,4679.9,4679.8,3.344]
[1755101392129,6.83429779,4679.9,4679.8,3.344]
[1755101392315,2.1370332,4679.4,4678.5,5.123]
[1755101392541,0.57374801,4679.7,4678.6,3.335]
[1755101392848,5.13701617,4679.5,4678.6,3.335]
[1755101393036,3.45774251,4679.4,4678.6,3.335]
[1755101393400,0.92844251,4679.4,4678.6,3.335]
[1755101393514,0.4707,4679.4,4678.6,3.335]
[1755101394644,0.4707,4679.4,4678.5,5.123]
[1755101394822,0.4707,4679.4,4678.7,3.333]
[1755101395413,0.640751,4679.3,4678.7,3.333]
[1755101396655,0.640751,4679.3,4678.5,5.5523]
[1755101396815,0.640751,4679.3,4678.8,3.331]
[1755101397019,0.640751,4679.3,4678.5,5.5523]
[1755101397220,0.4707,4679.2,4678.5,5.123]
[1755101397419,0.4707,4679.2,4678.6,3.33]
[1755101397866,1.09849351,4679.3,4678.6,3.33]
[1755101398015,0.640751,4679.3,4678.6,3.33]
[1755101398223,0.1072,4678.7,4678.6,3.33]
[1755101398426,0.1072,4678.7,4678.6,4.913]
[1755101399674,0.45774251,4680.2,4678.6,5.9167]
[1755101399854,0.1072,4679.8,4678.6,4.3337]
[1755101400030,0.1072,4679.8,4679.2,0.1072]
[1755101400031,0.747745,4679.8,4679.2,0.1072]
[1755101400237,0.1072,4679.8,4679.3,5.001]
[1755101400571,0.747745,4679.8,4679.4,1.66]
[1755101400743,0.1072,4679.8,4679.5,1.66]
[1755101400979,0.1564432,4680.2,4679.6,1.66]
[1755101401137,0.1072,4680.1,4679.7,3.8141]
[1755101401459,0.1072,4680.1,4679.8,3.34]
[1755101401761,0.640507,4680.2,4679.9,3.339]
[1755101401962,0.640507,4680.2,4679.9,3.8131]
[1755101402182,0.1072,4680.0,4679.3,0.4741]
[1755101402468,0.1072,4679.6,4679.4,3.339]
[1755101402629,0.1072,4679.6,4679.4,4.5249]
[1755101402835,0.1072,4679.6,4679.5,1.66]
[1755101403036,0.640507,4680.2,4679.5,1.66]
[1755101403277,0.002,4680.3,4679.6,1.66]
[1755101403466,0.002,4680.3,4679.7,0.02136889]
[1755101403768,0.002,4680.3,4679.8,5.04236843]
[1755101403927,0.002,4681.3,4679.8,5.021]
[1755101404131,0.002,4681.3,4680.0,0.1072]
[1755101404332,0.002,4681.3,4681.0,0.1072]
[1755101404532,0.002,4681.3,4681.1,8.486]
[1755101404796,0.002,4681.3,4681.1,10.146]
[1755101404956,0.002,4681.3,4681.2,1.66]
[1755101405807,0.002,4681.3,4681.2,0.4741]
[1755101407459,0.002,4681.3,4681.2,1.66]
[1755101407655,0.002,4681.3,4681.2,1.7672]
[1755101408298,0.002,4681.3,4681.2,2.79252]
[1755101409291,0.002,4681.3,4681.2,1.7672]
[1755101409903,0.002,4681.3,4681.2,0.5813]
[1755101410790,0.002,4681.3,4681.2,3.356]
[1755101411865,0.002,4681.3,4681.1,5.123]
[1755101412089,0.002,4681.3,4681.2,3.355]
[1755101414100,0.002,4681.3,4681.1,5.123]
[1755101414303,0.1092,4681.3,4681.2,3.351]
[1755101415201,0.002,4681.3,4681.2,3.8251]
[1755101415405,0.002,4681.3,4681.2,5.011]
[1755101415773,0.002,4681.3,4681.2,3.8241]
[1755101416189,0.002,4681.3,4681.2,3.35]
[1755101416402,0.002,4681.3,4681.2,0.4741]
[1755101416603,0.002,4681.3,4681.2,3.349]
[1755101417971,0.002,4681.3,4681.2,3.8231]
[1755101418295,0.002,4681.3,4681.2,5.009]
[1755101419411,0.002,4681.3,4681.2,6.03292]
[1755101422611,0.002,4681.3,4681.2,2.68392]
[1755101422811,0.002,4681.3,4681.2,6.13712]
[1755101423575,0.002,4681.3,4681.2,2.79112]
[1755101423722,0.002,4681.3,4681.2,6.13512]
[1755101424214,0.002,4681.3,4681.2,6.13412]
[1755101424622,0.002,4681.3,4681.2,6.13312]
[1755101426685,0.002,4681.3,4681.2,6.24162523]
[1755101427030,0.002,4681.3,4681.2,6.13312]
[1755101427226,0.002,4681.3,4681.2,32.25932156]
[1755101427530,0.002,4681.3,4681.2,32.26132156]
[1755101427821,0.002,4681.3,4681.2,32.26232156]
[1755101428551,1.1273,4684.6,4681.3,0.8544635]
[1755101428741,1.1273,4684.6,4682.1,23.12620156]
[1755101429031,0.4602,4684.5,4683.3,0.1064]
[1755101429211,0.4602,4684.5,4683.3,8.5764]
[1755101429414,0.15830243,4685.3,4683.3,8.5764]
[1755101429415,0.4602,4684.1,4683.3,8.5764]
[1755101429591,0.1064,4684.8,4683.3,8.5764]
[1755101429803,0.15830243,4685.3,4683.3,5.2254]
[1755101430004,1.5667,4683.4,4683.3,8.5754]
[1755101430233,0.02,4683.4,4683.3,8.5754]
[1755101430438,0.02,4683.4,4683.3,5.2254]
[1755101430626,0.02,4683.4,4683.3,8.5824]
[1755101431420,0.02,4683.4,4683.3,5.119]
[1755101431421,1.5667,4683.4,4683.3,5.119]
[1755101431639,1.5667,4683.4,4683.3,8.478]
[1755101432606,1.5667,4683.4,4683.3,5.119]
[1755101432803,1.6731,4683.4,4683.3,8.477]
[1755101434133,1.6731,4683.4,4683.3,5.119]
[1755101434620,1.6731,4683.4,4683.3,8.478]
[1755101435712,1.6731,4683.4,4683.3,5.119]
[1755101436236,1.6731,4683.4,4683.3,8.477]
[1755101438219,1.6731,4683.4,4683.3,5.119]
[1755101438713,4.6731,4683.4,4683.3,5.119]
[1755101438914,5.12997853,4683.4,4683.3,8.474]
[1755101439449,2.13528364,4683.3,4681.7,5.119]
[1755101439615,0.57374801,4683.2,4681.8,3.355]
[1755101439815,0.4431,4683.1,4681.8,3.355]
[1755101440012,1.1036,4683.0,4681.8,3.355]
[1755101440213,0.4431,4682.9,4681.8,3.355]
[1755101440418,0.1064,4681.9,4681.8,3.355]
[1755101440720,0.1064,4681.9,4681.8,3.357]
[1755101441238,0.1064,4681.9,4681.8,3.356]
[1755101441438,1.6531,4681.9,4681.8,3.356]
[1755101441946,1.6531,4681.9,4681.7,5.119]
[1755101442243,0.1064,4681.9,4681.7,5.119]
[1755101442450,0.1064,4681.9,4681.8,3.355]
[1755101443154,1.6531,4681.9,4681.8,3.355]
[1755101444257,0.1064,4681.9,4681.8,3.355]
[1755101445036,0.6054946,4682.5,4681.8,3.355]
[1755101445037,0.1623946,4682.5,4681.8,3.355]
[1755101445237,0.1064,4682.0,4681.8,3.8254]
[1755101445554,0.1064,4682.0,4681.8,3.355]
[1755101445760,0.1064,4682.3,4681.9,0.4704]
[1755101445942,0.1064,4682.3,4682.0,3.353]
[1755101446254,0.1064,4682.3,4682.0,3.8234]
[1755101446456,0.1064,4682.3,4682.0,3.353]
[1755101446839,0.1064,4682.3,4682.1,3.354]
[1755101447143,0.1064,4682.3,4682.2,3.354]
[1755101447852,0.1064,4682.3,4681.7,0.1064]
[1755101448021,0.1064,4682.3,4681.8,3.353]
[1755101448451,0.1064,4682.3,4681.8,3.8234]
[1755101449233,0.1064,4682.3,4681.8,3.353]
[1755101449730,0.1064,4682.3,4681.9,1.69185885]
[1755101450254,0.1064,4682.3,4682.0,1.6705]
[1755101450426,0.1064,4682.3,4682.1,3.35]
[1755101450627,3.0,4683.3,4682.1,5.0205]
[1755101450823,3.0,4683.3,4682.2,5.12]
[1755101450824,0.1064,4682.7,4682.2,5.12]
[1755101451047,0.1064,4682.7,4682.3,0.4704]
[1755101451259,0.1064,4682.7,4682.4,3.349]
[1755101452471,0.1064,4682.7,4682.5,1.6705]
[1755101452635,3.0,4683.3,4682.5,1.6705]
[1755101452830,0.1064,4683.0,4682.6,0.4704]
[1755101453029,0.1064,4683.0,4682.7,3.8174]
[1755101453325,0.022,4683.4,4682.8,1.6705]
[1755101453595,0.022,4683.4,4683.1,0.1064]
[1755101453765,0.022,4683.4,4683.2,3.348]
[1755101453945,0.1284,4683.4,4683.3,3.347]
[1755101454655,0.1284,4683.4,4682.8,0.1064]
[1755101454960,0.1284,4683.4,4682.9,3.346]
[1755101455163,1.6751,4683.4,4682.9,3.346]
[1755101455662,1.5467,4683.3,4682.2,5.12]
[1755101455831,1.5467,4683.3,4682.2,5.2264]
[1755101456031,0.1064,4682.7,4682.3,3.345]
[1755101456228,1.5467,4682.6,4682.2,5.12]
[1755101456566,0.022,4683.4,4682.3,3.347]
[1755101456567,1.5467,4682.5,4682.3,3.347]
[1755101456763,1.6531,4682.4,4682.3,3.347]
[1755101457060,1.6531,4682.4,4682.2,5.12]
[1755101457233,1.5467,4682.3,4682.2,5.12]
[1755101457630,1.5467,4682.3,4682.2,8.466]
[1755101458531,1.5467,4682.3,4682.2,5.12]
[1755101458736,1.5467,4682.3,4682.2,8.466]
[1755101459653,1.6531,4682.3,4682.2,8.466]
[1755101460159,1.6531,4682.3,4682.2,5.12]
[1755101460362,1.6531,4682.3,4682.2,8.466]
[1755101460768,1.6531,4682.3,4682.2,5.12]
[1755101460967,1.6531,4682.3,4682.2,8.464]
[1755101461179,1.6531,4682.3,4682.2,3.345]
[1755101462167,1.6531,4682.3,4682.2,3.344]
[1755101462534,2.22573216,4682.3,4680.4,0.001]
[1755101462730,0.57263216,4681.8,4680.4,0.001]
[1755101462960,0.57263216,4681.4,4680.5,3.345]
[1755101463163,4.6278,4681.3,4680.6,3.345]
[1755101463364,3.76400439,4681.2,4680.6,3.345]
[1755101463531,0.1072,4680.7,4680.6,3.345]
[1755101463860,1.84276153,4680.7,4680.6,3.345]
[1755101464033,1.735,4680.7,4680.6,3.345]
[1755101464450,1.735,4680.7,4680.1,0.02]
[1755101464451,3.0,4680.6,4680.1,0.02]
[1755101464648,2.13679779,4679.9,4679.3,0.001]
[1755101464832,2.24399779,4679.9,4679.3,0.001]
[1755101465038,7.02789904,4679.9,4679.3,0.001]
[1755101465265,5.13684345,4679.8,4679.1,0.02]
[1755101465466,0.1072,4679.4,4678.3,0.001]
[1755101465631,0.1072,4678.7,4678.3,0.001]
[1755101465832,0.1072,4678.7,4678.1,0.021]
[1755101466057,2.13757428,4678.2,4678.1,0.021]
[1755101466374,0.1072,4678.2,4678.1,0.021]
[1755101466739,1.735,4678.2,4678.1,0.021]
[1755101469656,0.1072,4678.2,4678.1,0.021]
[1755101470848,0.5526,4678.2,4678.1,0.021]
[1755101471058,1.735,4678.2,4678.1,0.021]
[1755101471490,4.735,4678.2,4678.1,0.021]
[1755101472190,3.1072,4678.2,4678.1,0.021]
[1755101472776,0.1072,4678.2,4678.1,0.021]
[1755101473352,0.1072,4678.2,4678.1,1.6655]
[1755101473594,0.1072,4678.2,4678.1,2.16725]
[1755101473983,0.1072,4678.5,4678.1,2.16725]
[1755101474151,0.1072,4678.5,4678.2,1.6445]
[1755101474659,0.1072,4678.5,4678.3,1.6445]
[1755101474864,0.1072,4678.5,4678.4,0.4521]
[1755101475880,0.1072,4678.5,4678.4,1.6445]
[1755101477379,0.1072,4678.5,4678.4,0.4521]
[1755101477681,0.1072,4678.5,4678.4,1.6445]
[1755101477884,1.495,4679.7,4678.4,1.6445]
[1755101478051,0.1072,4678.5,4678.4,1.6445]
[1755101478479,0.15610125,4679.9,4678.4,1.81105]
[1755101478660,0.1072,4679.3,4678.5,6.7685]
[1755101478979,0.1072,4679.3,4678.6,4.9945]
[1755101479485,0.1072,4679.3,4678.7,1.6445]
[1755101479864,0.1072,4678.9,4678.8,3.348]
[1755101480063,0.1072,4679.1,4678.8,3.8001]
[1755101480265,0.640623,4680.7,4678.9,1.6445]
[1755101480488,0.1072,4679.6,4679.0,1.6445]
[1755101480666,0.1072,4679.2,4679.1,3.355]
[1755101482483,0.1072,4679.2,4679.1,3.354]
[1755101482689,0.26892505,4679.2,4678.6,0.4521]
[1755101482998,0.26892505,4679.2,4678.7,3.352]
[1755101483196,0.26892505,4679.2,4678.8,0.4521]
[1755101484375,0.16172505,4679.2,4678.5,5.124]
[1755101484596,1.1824,4679.2,4678.6,3.352]
[1755101485094,0.1072,4678.7,4678.6,3.352]
[1755101485672,0.1072,4678.7,4678.5,5.124]
[1755101485866,0.1072,4678.7,4678.6,3.35]
[1755101486107,1.2896,4678.7,4678.6,3.35]
[1755101487203,0.1072,4678.7,4678.6,3.35]
[1755101488488,1.735,4678.7,4678.6,3.348]
[1755101488689,1.735,4678.7,4678.5,5.124]
[1755101488891,0.1072,4678.7,4678.6,3.35]
[1755101489091,2.24454584,4678.7,4678.6,3.35]
[1755101489410,2.13757428,4678.2,4677.8,0.001]
[1755101489594,0.1072,4678.2,4678.1,3.371]
[1755101489803,1.7147,4678.2,4678.1,3.371]
[1755101490613,6.85227428,4678.2,4678.1,3.37]
[1755101490913,3.0,4678.1,4677.8,0.001]
[1755101491088,3.1072,4677.9,4677.8,0.001]
[1755101491280,0.1072,4677.9,4677.8,0.001]
[1755101491474,4.7147,4677.9,4677.8,0.001]
[1755101491711,5.17115158,4677.9,4677.8,0.001]
[1755101492079,5.17115158,4677.9,4677.8,3.349]
[1755101492297,7.30886294,4677.9,4677.8,3.349]
[1755101492612,2.13781686,4677.7,4677.1,0.021]
[1755101492819,0.1072,4677.4,4677.1,0.021]
[1755101493307,0.68037683,4677.4,4677.1,0.021]
[1755101493506,0.1072,4677.4,4677.1,0.021]
[1755101493678,0.68037683,4677.4,4677.3,3.347]
[1755101493879,0.1072,4677.4,4677.3,3.347]
[1755101494316,0.68037683,4677.4,4677.3,3.347]
[1755101494517,0.1072,4677.4,4677.3,3.347]
[1755101494679,0.1072,4677.4,4677.3,4.8479]
[1755101494877,0.1072,4677.4,4677.3,3.7753]
[1755101495095,0.1072,4677.4,4677.3,0.001]
[1755101495293,0.1072,4677.4,4677.3,3.347]
[1755101496228,0.21354538,4677.4,4677.3,3.347]
[1755101496521,0.1072,4677.4,4677.3,4.8479]
[1755101497185,0.21325588,4677.4,4677.3,4.8479]
[1755101497386,0.1072,4677.4,4677.3,4.8479]
[1755101500929,0.1072,4677.4,4677.3,1.5019]
[1755101501088,0.1072,4677.4,4677.3,3.7723]
[1755101501288,0.1072,4677.4,4677.3,4.8439]
[1755101501611,0.1072,4678.3,4677.3,5.44752879]
[1755101501929,0.640762,4679.1,4677.4,1.52227939]
[1755101502226,0.002,4679.7,4677.5,1.5009]
[1755101502384,0.1072,4679.0,4678.4,0.1072]
[1755101502585,0.1072,4679.0,4678.5,3.7723]
[1755101502827,0.1072,4679.0,4678.6,1.5009]
[1755101503008,0.1072,4679.3,4678.6,1.6081]
[1755101503323,0.1092,4679.7,4678.9,0.1072]
[1755101503502,0.1092,4679.7,4679.0,6.6259]
[1755101503828,0.1092,4679.7,4679.1,3.342]
[1755101504986,0.1092,4679.7,4679.0,5.5543]
[1755101505187,0.002,4679.7,4679.1,3.341]
[1755101505403,0.1072,4679.2,4679.1,3.341]
[1755101505934,0.1072,4679.2,4679.1,3.7703]
[1755101506435,0.1072,4679.2,4679.1,4.8419]
[1755101506944,0.002,4679.7,4679.1,4.8419]
[1755101507099,0.1072,4679.5,4679.2,0.4293]
[1755101507298,0.1072,4679.5,4679.0,5.125]
[1755101507495,0.1072,4679.5,4679.2,0.4293]
[1755101507897,0.1072,4679.5,4679.0,5.125]
[1755101508115,0.002,4679.7,4679.1,3.339]
[1755101508489,0.1072,4679.1,4679.0,5.125]
[1755101508693,0.1072,4679.1,4679.0,8.465]
[1755101508932,0.1072,4679.1,4679.0,5.125]
[1755101509096,0.1072,4679.1,4679.0,8.464]
[1755101510211,0.1072,4679.1,4679.0,8.463]
[1755101510410,0.002,4679.7,4679.0,8.8923]
[1755101510622,0.1072,4679.2,4679.0,9.9639]
[1755101510816,0.1072,4679.2,4679.1,0.4293]
[1755101511021,0.1072,4679.5,4679.1,1.5009]
[1755101511231,0.002,4679.7,4679.2,1.52227117]
[1755101511452,0.1092,4679.7,4679.3,3.34]
[1755101511657,0.1092,4679.7,4679.3,4.8409]
[1755101511821,0.1092,4679.7,4679.4,0.4293]
[1755101513838,0.1092,4679.7,4679.5,0.4293]
[1755101514040,0.1092,4679.7,4679.6,3.338]
[1755101514242,0.1092,4679.7,4679.6,4.8389]
[1755101514751,0.1092,4679.7,4679.6,3.7673]
[1755101514912,0.1092,4679.7,4679.6,3.338]
[1755101515854,0.1092,4679.7,4679.0,5.125]
[1755101516016,1.1686,4679.7,4679.1,3.336]
[1755101516215,0.1072,4679.2,4679.1,3.336]
[1755101517037,0.1072,4679.2,4679.0,5.125]
[1755101517340,0.1072,4679.2,4679.1,3.336]
[1755101518952,1.2738,4679.2,4679.0,5.125]
[1755101519169,0.1072,4679.2,4679.0,5.125]
[1755101519692,0.1072,4679.2,4679.1,3.334]
[1755101522979,0.1072,4679.2,4679.1,4.9109]
[1755101523776,0.1072,4679.2,4679.1,3.7955]
[1755101524764,0.1072,4679.2,4679.1,4.9109]
[1755101525149,0.002,4679.7,4679.1,4.9109]
[1755101525150,0.1072,4679.4,4679.1,4.9109]
[1755101525352,0.1092,4679.7,4679.2,1.5769]
[1755101525547,0.002,4679.7,4679.4,0.1072]
[1755101525789,0.002,4679.7,4679.5,4.9069]
[1755101526392,0.002,4679.7,4679.6,1.5769]
[1755101527448,0.002,4679.7,4679.6,4.9269]
[1755101531791,0.002,4679.7,4679.6,1.5969]
[1755101531995,0.002,4679.7,4679.6,5.193741]
[1755101534899,0.002,4679.7,4679.6,3.8065]
[1755101535207,0.002,4679.7,4679.6,0.02]
[1755101535392,1.2272,4679.7,4679.6,3.342]
[1755101535560,1.6912,4679.7,4679.6,0.02]
[1755101535892,1.6912,4679.7,4679.6,3.344]
[1755101536074,1.6912,4679.7,4679.6,0.02]
[1755101536393,1.6912,4679.7,4679.6,3.344]
[1755101536593,0.1092,4679.7,4679.6,3.344]
[1755101536762,1.2272,4679.7,4679.6,3.344]
[1755101536963,1.6912,4679.7,4679.6,3.344]
[1755101537391,1.2272,4679.7,4679.6,3.344]
[1755101538700,0.1092,4679.7,4679.6,3.344]
[1755101539497,1.2272,4679.7,4679.6,3.344]
[1755101540199,1.6912,4679.7,4679.6,3.343]
[1755101541399,1.6912,4679.7,4679.0,5.125]
[1755101541575,0.1072,4679.1,4679.0,5.125]
[1755101541765,1.5366,4679.1,4679.0,8.448]
[1755101542170,0.1072,4679.1,4679.0,8.448]
[1755101542971,0.1072,4679.1,4679.0,8.9095]
[1755101543497,0.002,4679.7,4679.0,8.9095]
[1755101543498,0.002,4679.7,4679.0,10.0249]
[1755101543734,0.002,4679.7,4679.1,0.1072]
[1755101544004,0.002,4679.7,4679.1,0.5687]
[1755101544703,0.002,4679.7,4679.6,0.1072]
[1755101544890,0.002,4679.7,4679.6,3.4312]
[1755101545089,0.002,4679.7,4679.6,3.88686]
[1755101545294,0.002,4679.7,4679.6,5.46376]
[1755101547499,0.002,4679.7,4679.6,5.0081]
[1755101548815,0.002,4679.7,4679.6,5.0181]
[1755101553128,0.002,4679.7,4679.6,3.9027]
[1755101553425,0.002,4679.7,4679.6,4.9267]
[1755101556543,0.002,4679.7,4679.6,3.4382]
[1755101556745,0.002,4679.7,4679.6,3.9015]
[1755101556902,0.002,4679.7,4679.6,0.5805]
[1755101557102,0.002,4679.7,4679.6,3.4382]
[1755101558201,0.002,4679.7,4679.6,3.9015]
[1755101558602,0.002,4679.7,4679.6,0.5805]
[1755101558830,0.002,4679.7,4679.6,3.9015]
[1755101559214,0.002,4679.7,4679.6,3.4372]
[1755101560932,0.002,4679.7,4679.6,3.9005]
[1755101561527,0.002,4679.7,4679.6,5.41695]
[1755101562538,0.002,4679.7,4679.6,1.07295]
[1755101562724,0.002,4679.7,4679.6,0.1172]
[1755101563048,0.002,4679.7,4679.6,4.9245]
[1755101567523,0.002,4679.7,4679.6,4.9145]
[1755101571835,0.002,4679.7,4679.6,0.1072]
[1755101572156,0.002,4679.7,4679.6,3.4272]
[1755101573249,0.002,4679.7,4679.6,0.5705]
[1755101573464,0.002,4679.7,4679.6,3.8905]
[1755101573630,0.002,4679.7,4679.6,3.4272]
[1755101574453,0.002,4679.7,4679.6,3.8905]
[1755101574850,0.002,4679.7,4679.6,3.4272]
[1755101575768,0.002,4679.7,4679.6,0.1072]
[1755101576073,1.1306,4679.7,4679.6,3.4262]
[1755101576746,1.5777,4679.7,4679.6,3.4262]
[1755101577952,1.5777,4679.7,4679.6,0.1072]
[1755101578156,1.5777,4679.7,4679.6,3.319]
[1755101578811,1.6849,4679.7,4679.6,3.319]
[1755101579580,1.6849,4679.7,4679.6,3.32]
[1755101581002,0.1092,4679.7,4679.6,3.32]
[1755101581279,0.002,4679.7,4679.6,3.32]
[1755101581857,0.002,4679.7,4679.6,3.4272]
[1755101582492,1.4818,4679.7,4679.6,3.32]
[1755101584796,0.55,4679.6,4679.1,0.001]
[1755101585111,0.1072,4679.2,4679.1,0.001]
[1755101585458,0.1072,4679.2,4679.1,0.4423]
[1755101585664,0.1072,4679.2,4679.1,2.01563]
[1755101585995,0.002,4679.7,4679.1,5.44183]
[1755101586185,0.002,4679.7,4679.6,0.1072]
[1755101586381,0.002,4679.7,4679.6,3.4262]
[1755101586695,0.002,4679.7,4679.6,3.519]
[1755101586895,0.002,4679.7,4679.6,4.0675]
[1755101587691,0.002,4679.7,4679.6,5.0841]
[1755101587877,0.002,4679.7,4679.6,5.48531]
[1755101588196,0.002,4679.7,4679.6,5.59251]
[1755101589211,0.002,4679.7,4679.6,4.0675]
[1755101589927,0.002,4679.7,4679.6,3.6262]
[1755101590791,0.002,4679.7,4679.6,4.0675]
[1755101592700,0.002,4679.7,4679.6,4.9769]
[1755101592845,0.002,4679.7,4679.6,5.0841]
[1755101593007,0.002,4679.7,4679.6,5.59251]
[1755101593210,0.002,4679.7,4679.6,4.13461]
[1755101593442,0.002,4679.7,4679.6,0.3072]
[1755101593739,0.002,4679.7,4679.6,3.6262]
[1755101594526,1.0235,4679.7,4679.6,5.4292]
[1755101594853,1.0235,4679.7,4679.6,8.7482]
[1755101595053,1.4818,4679.7,4679.6,8.7482]
[1755101596162,1.0235,4679.7,4679.6,8.7482]
[1755101596954,0.002,4679.7,4679.6,8.7482]
[1755101597349,1.0235,4679.7,4679.6,8.7482]
[1755101597869,1.4818,4679.7,4679.6,8.7482]
[1755101598070,1.4818,4679.7,4679.6,8.641]
[1755101601356,1.4818,4679.7,4679.6,8.642]
[1755101602471,1.0235,4679.7,4679.6,8.642]
[1755101602978,1.4818,4679.7,4679.6,8.642]
[1755101603176,0.002,4679.7,4679.6,8.642]
[1755101603478,0.002,4679.7,4679.6,9.0833]
[1755101603665,0.002,4679.7,4679.6,10.0999]
[1755101604179,0.002,4679.7,4679.6,10.2071]
[1755101604506,0.002,4679.7,4679.6,9.1905]
[1755101605096,0.002,4679.7,4679.6,8.7492]
[1755101607005,0.002,4679.7,4679.6,5.4302]
[1755101607190,0.002,4679.7,4679.6,9.1905]
[1755101607711,0.002,4679.7,4679.6,8.7492]
[1755101608094,1.0235,4679.7,4679.6,8.642]
[1755101608685,1.4818,4679.7,4679.6,8.642]
[1755101610420,0.1,4679.1,4678.9,0.1072]
[1755101610595,0.1,4679.1,4678.9,5.2292]
[1755101611404,0.1,4679.1,4679.0,3.318]
[1755101612315,0.2072,4679.1,4679.0,3.318]
[1755101613034,0.02,4679.4,4679.0,5.122]
[1755101613186,0.02,4679.4,4679.2,0.1072]
[1755101614082,0.02,4679.4,4679.3,3.318]
[1755101614288,0.1,4679.1,4678.7,5.122]
[1755101614510,0.1,4678.4,4678.2,5.122]
[1755101614820,0.547,4678.4,4678.1,0.1072]
[1755101615318,0.1,4678.7,4678.2,0.02137574]
[1755101615504,0.1,4679.3,4678.3,1.59973757]
[1755101615685,0.1,4679.3,4678.4,3.318]
[1755101615885,0.1,4679.3,4678.4,3.7641]
[1755101616082,0.1,4679.3,4678.5,0.4461]
[1755101616330,0.1,4679.3,4678.6,3.318]
[1755101616492,0.1,4679.3,4679.2,0.1072]
[1755101616798,0.1,4679.3,4679.2,3.4252]
[1755101617122,0.02,4679.4,4679.2,3.8713]
[1755101617439,0.02,4679.4,4679.3,1.4243]
[1755101617723,0.02,4679.4,4679.3,1.93062071]
[1755101618291,0.02,4679.4,4679.3,1.90925]
[1755101618494,0.02,4679.4,4679.3,1.93062071]
[1755101619188,0.02,4679.4,4679.3,1.90925]
[1755101619415,0.02,4679.4,4679.3,0.4461]
[1755101620022,0.02,4679.4,4679.3,1.4243]
[1755101620229,0.02,4679.4,4679.3,6.5463]
[1755101620827,0.02,4679.4,4679.3,6.6535]
[1755101623194,0.022,4679.4,4679.3,6.6535]
[1755101623399,0.022,4679.4,4679.3,7.65065]
[1755101626598,0.022,4679.4,4679.3,8.20065]
[1755101626804,0.022,4679.4,4679.3,11.20065]
[1755101627536,0.022,4679.4,4679.3,8.20065]
[1755101628805,0.022,4679.4,4679.3,11.20065]
[1755101629441,0.00304167,4679.4,4679.3,28.62854431]
[1755101629603,0.00304167,4679.4,4679.3,29.6369584]
[1755101629804,0.002,4679.9,4679.6,31.40477391]
[1755101630111,0.002,4679.9,4679.6,48.87841382]
[1755101630337,0.002,4679.9,4679.6,48.69365282]
[1755101630556,0.002,4679.9,4679.6,48.32475382]
[1755101630868,0.002,4679.9,4679.6,47.69235182]
[1755101631037,0.002,4679.9,4679.6,47.9531372]
[1755101631426,0.002,4679.9,4679.6,60.5999402]
[1755101632227,0.002,4679.9,4679.6,44.2118682]
[1755101632429,0.002,4679.9,4679.6,17.87397906]
[1755101632628,0.002,4679.9,4679.6,20.92919368]
[1755101633131,0.002,4679.9,4679.6,21.78396759]
[1755101633530,0.002,4679.9,4679.6,26.89278159]
[1755101633994,0.002,4679.9,4679.6,50.00557488]